fUSD/lending_fUSD_20260418
["ID","MTS","AMOUNT","RATE_DAILY","PERIOD"]
[420698227,1776458988107,-500.0,0.00043997,120]
[420698228,1776458988160,-977.07,0.00043997,120]
[420698229,1776458988213,-500.0,0.00043997,120]
[420698230,1776458988266,-500.0,0.00043997,120]
[420698231,1776458988319,-867.44,0.00043997,120]
[420698232,1776458988374,-1468.2,0.00043997,120]
[420698233,1776458988435,-563.15,0.00043997,120]
[420698234,1776458988489,-500.0,0.00043997,120]
[420698235,1776458988543,-500.0,0.00043997,120]
[420698236,1776458988598,-500.0,0.00043997,120]
[420698237,1776458988650,-500.0,0.00043997,120]
[420698238,1776458988705,-554.88,0.00043997,120]
[420698239,1776458988757,-500.0,0.00043997,120]
[420698240,1776458988809,-977.07,0.00043997,120]
[420698241,1776458988863,-500.0,0.00043997,120]
[420698242,1776458988919,-867.44,0.00043997,120]
[420698243,1776458988972,-500.0,0.00043997,120]
[420698244,1776458989025,-1468.2,0.00043997,120]
[420698245,1776458989078,-563.15,0.00043997,120]
[420698246,1776458989130,-500.0,0.00043997,120]
[420698247,1776458989183,-500.0,0.00043997,120]
[420698248,1776458989234,-500.0,0.00043997,120]
[420698249,1776458989287,-500.0,0.00043997,120]
[420698250,1776458989338,-554.88,0.00043997,120]
[420698251,1776458989855,-500.0,0.00043997,120]
[420698252,1776458989909,-977.07,0.00043997,120]
[420698253,1776458989963,-500.0,0.00043997,120]
[420698254,1776458990016,-867.44,0.00043997,120]
[420698255,1776458990068,-1468.2,0.00043997,120]
[420698256,1776458990119,-500.0,0.00043997,120]
[420698257,1776458990171,-563.15,0.00043997,120]
[420698258,1776458990222,-500.0,0.00043997,120]
[420698259,1776458990272,-500.0,0.00043997,120]
[420698260,1776458990321,-500.0,0.00043997,120]
[420698261,1776458990372,-500.0,0.00043997,120]
[420698262,1776458990422,-554.88,0.00043997,120]
[420698263,1776458990476,-1445.14,0.00043997,120]
[420698264,1776458990528,-500.0,0.00043997,120]
[420698265,1776458990595,-977.07,0.00043997,120]
[420698266,1776458990650,-867.44,0.00043997,120]
[420698267,1776458990705,-500.0,0.00043997,120]
[420698268,1776458990758,-563.15,0.00043997,120]
[420698269,1776458990812,-1468.2,0.00043997,120]
[420698270,1776458990865,-500.0,0.00043997,120]
[420698271,1776458990918,-500.0,0.00043997,120]
[420698272,1776458990972,-500.0,0.00043997,120]
[420698273,1776458991025,-500.0,0.00043997,120]
[420698274,1776458991081,-500.0,0.00043997,120]
[420698275,1776458991135,-1445.14,0.00043997,120]
[420698276,1776458991188,-204.16638512,0.00043997,120]
[420698277,1776458991241,-977.07,0.00043997,120]
[420698278,1776458991294,-554.88,0.00043997,120]
[420698279,1776458991348,-500.0,0.00043997,120]
[420698280,1776458991401,-867.44,0.00043997,120]
[420698281,1776458991459,-1468.2,0.00043997,120]
[420698282,1776458991514,-500.0,0.00043997,120]
[420698283,1776458991571,-500.0,0.00043997,120]
[420698284,1776458991626,-500.0,0.00043997,120]
[420698285,1776458991680,-563.15,0.00043997,120]
[420698286,1776458991734,-500.0,0.00043997,120]
[420698287,1776458991790,-500.0,0.00043997,120]
[420698288,1776458991848,-672.53,0.00043997,120]
[420698289,1776458991902,-500.0,0.00043997,120]
[420698290,1776458991959,-500.0,0.00043997,120]
[420698291,1776458992012,-1445.14,0.00043997,120]
[420698292,1776458992067,-554.88,0.00043997,120]
[420698293,1776458992122,-500.0,0.00043997,120]
[420698294,1776458992176,-867.44,0.00043997,120]
[420698295,1776458992234,-1468.2,0.00043997,120]
[420698296,1776458992287,-500.0,0.00043997,120]
[420698297,1776458992342,-500.0,0.00043997,120]
[420698298,1776458992396,-500.0,0.00043997,120]
[420698299,1776458992451,-977.07,0.00043997,120]
[420698300,1776458992505,-563.15,0.00043997,120]
[420698301,1776458992559,-500.0,0.00043997,120]
[420698302,1776458992614,-500.0,0.00043997,120]
[420698303,1776458992669,-500.0,0.00043997,120]
[420698304,1776458992723,-672.53,0.00043997,120]
[420698305,1776458992779,-1445.14,0.00043997,120]
[420698306,1776458992835,-500.0,0.00043997,120]
[420698307,1776458992894,-867.44,0.00043997,120]
[420698308,1776458992953,-554.88,0.00043997,120]
[420698309,1776458993012,-500.0,0.00043997,120]
[420698310,1776458993067,-1468.2,0.00043997,120]
[420698311,1776458993119,-500.0,0.00043997,120]
[420698312,1776458993172,-500.0,0.00043997,120]
[420698313,1776458993225,-500.0,0.00043997,120]
[420698314,1776458993278,-977.07,0.00043997,120]
[420698315,1776458993329,-500.0,0.00043997,120]
[420698316,1776458993382,-500.0,0.00043997,120]
[420698317,1776458993438,-672.53,0.00043997,120]
[420698318,1776458993492,-500.0,0.00043997,120]
[420698319,1776458993545,-1445.14,0.00043997,120]
[420698320,1776458993599,-867.44,0.00043997,120]
[420698321,1776458993650,-554.88,0.00043997,120]
[420698322,1776458993703,-500.0,0.00043997,120]
[420698323,1776458993754,-500.0,0.00043997,120]
[420698324,1776458993809,-1468.2,0.00043997,120]
[420698325,1776458993865,-500.0,0.00043997,120]
[420698326,1776458993919,-563.15,0.00043997,120]
[420698327,1776458993975,-500.0,0.00043997,120]
[420698328,1776458994031,-977.07,0.00043997,120]
[420698329,1776458994085,-500.0,0.00043997,120]
[420698330,1776458994139,-500.0,0.00043997,120]
[420698331,1776458994197,-500.0,0.00043997,120]
[420698332,1776458994254,-1445.14,0.00043997,120]
[420698333,1776458994307,-500.0,0.00043997,120]
[420698334,1776458994359,-554.88,0.00043997,120]
[420698335,1776458994413,-500.0,0.00043997,120]
[420698336,1776458994465,-1468.2,0.00043997,120]
[420698337,1776458994521,-500.0,0.00043997,120]
[420698338,1776458994575,-563.15,0.00043997,120]
[420698339,1776458994633,-500.0,0.00043997,120]
[420698340,1776458994687,-977.07,0.00043997,120]
[420698341,1776458994740,-500.0,0.00043997,120]
[420698342,1776458994792,-635.15393763,0.00043997,120]
[420698343,1776458994845,-500.0,0.00043997,120]
[420698344,1776458994895,-500.0,0.00043997,120]
[420698345,1776458994949,-1445.14,0.00043997,120]
[420698346,1776458995000,-554.88,0.00043997,120]
[420698347,1776458995053,-500.0,0.00043997,120]
[420698348,1776458995106,-500.0,0.00043997,120]
[420698349,1776458995159,-1468.2,0.00043997,120]
[420698350,1776458995214,-500.0,0.00043997,120]
[420698351,1776458995266,-563.15,0.00043997,120]
[420698352,1776458995317,-672.53,0.00043997,120]
[420698353,1776458995367,-977.07,0.00043997,120]
[420698354,1776458995418,-0.74133863,0.00043997,120]
[420698409,1776459033582,-1694.9157,8.041e-05,2]
[420698411,1776459033592,-1149.40312983,8.041e-05,2]
[420698413,1776459033604,-553.30042079,8.041e-05,2]
[420698422,1776459033674,-285.0,8.041e-05,2]
[420698425,1776459033687,-48678.06341189,8.041e-05,2]
[420698426,1776459033698,-407.0,8.041e-05,2]
[420698427,1776459033709,-1400.0,8.041e-05,2]
[420698428,1776459033725,-1604.41930352,8.041e-05,2]
[420698429,1776459033762,-1929.25,8.041e-05,2]
[420698430,1776459033773,-52881.41043691,8.041e-05,2]
[420698431,1776459033784,-10901.04119706,8.041e-05,2]
[420698432,1776459033793,-153.99,8.22e-05,2]
[420698433,1776459033802,-150.0,8.22e-05,2]
[420698434,1776459033811,-150.0,8.571e-05,2]
[420698435,1776459033821,-150.0,8.871e-05,2]
[420698436,1776459033830,-164.15,0.0001064,2]
[420698437,1776459033839,-407.0,0.00011987,2]
[420698438,1776459033848,-150.99,0.00011987,2]
[420698439,1776459033857,-1622.86,0.00011987,2]
[420698440,1776459033867,-151.0,0.00011997,2]
[420698441,1776459033876,-2578.41,0.00012383,2]
[420698442,1776459033885,-200.0,0.0001286,2]
[420698443,1776459033894,-250.0,0.00013,2]
[420698444,1776459033903,-2000.0,0.00013134,2]
[420698445,1776459033913,-3527.0,0.00013186,2]
[420698446,1776459033922,-3778.0,0.00013186,2]
[420698447,1776459033931,-170.62,0.00013409,2]
[420698448,1776459033940,-2500.0,0.00013598,2]
[420698449,1776459033950,-500.0,0.00013697,2]
[420698450,1776459033959,-524.95249643,0.00013697,2]
[420698451,1776459033968,-500.0,0.00013697,2]
[420698452,1776459033978,-500.0,0.00013697,2]
[420698453,1776459033987,-500.0,0.00013697,2]
[420698454,1776459033997,-500.0,0.00013698,2]
[420698455,1776459034007,-500.0,0.00013698,2]
[420698456,1776459034016,-500.0,0.00013698,2]
[420698457,1776459034025,-500.0,0.00013698,2]
[420698458,1776459034034,-500.0,0.00013698,2]
[420698459,1776459034044,-500.0,0.00013698,2]
[420698460,1776459034053,-500.0,0.00013698,2]
[420698461,1776459034062,-500.0,0.00013698,2]
[420698462,1776459034071,-500.0,0.00013698,2]
[420698463,1776459034080,-500.0,0.00013698,2]
[420698464,1776459034090,-500.0,0.00013698,2]
[420698465,1776459034099,-500.0,0.00013698,2]
[420698466,1776459034108,-500.0,0.00013698,2]
[420698467,1776459034117,-1838.56,0.00013698,2]
[420698468,1776459034126,-1838.56,0.00013698,2]
[420698469,1776459034135,-1838.56,0.00013698,2]
[420698470,1776459034144,-915.06213701,0.00013698,2]
[420698471,1776459034164,-923.49786299,0.00013698,2]
[420698472,1776459034173,-168.52097608,0.00013698,2]
[420698473,1776459034184,-1670.03902392,0.00013698,2]
[420698474,1776459034193,-1177.94960289,0.00013698,2]
[420698487,1776459038510,-660.61039711,0.00013698,2]
[420698488,1776459038519,-1838.56,0.00013698,2]
[420698489,1776459038528,-1838.56,0.00013698,2]
[420698490,1776459038536,-1838.56,0.00013698,2]
[420698491,1776459038546,-1838.56,0.00013698,2]
[420698492,1776459038555,-1838.56,0.00013698,2]
[420698493,1776459038565,-1838.56,0.00013698,2]
[420698494,1776459038574,-1838.56,0.00013698,2]
[420698495,1776459038583,-1838.56,0.00013698,2]
[420698496,1776459038592,-1838.56,0.00013698,2]
[420698497,1776459038602,-1838.56,0.00013698,2]
[420698498,1776459038611,-1838.56,0.00013698,2]
[420698499,1776459038620,-1838.56,0.00013698,2]
[420698500,1776459038629,-1838.56,0.00013698,2]
[420698501,1776459038638,-1838.56,0.00013698,2]
[420698502,1776459038647,-1838.56,0.00013698,2]
[420698503,1776459038656,-1838.56,0.00013698,2]
[420698504,1776459038666,-1838.56,0.00013698,2]
[420698505,1776459038675,-1838.79322481,0.00013698,2]
[420698506,1776459038684,-500.0,0.00013698,2]
[420698507,1776459038693,-500.0,0.00013698,2]
[420698508,1776459038702,-184.97700304,0.00013698,2]
[420698509,1776459038711,-500.0,0.00013698,2]
[420698510,1776459038720,-342.00096028,0.00013698,2]
[420698511,1776459038729,-946.44,0.00013698,2]
[420698512,1776459038738,-946.44,0.00013698,2]
[420698513,1776459038747,-946.44,0.00013698,2]
[420698514,1776459038757,-946.44,0.00013698,2]
[420698515,1776459038767,-946.44,0.00013698,2]
[420698516,1776459038776,-946.44,0.00013698,2]
[420698517,1776459038786,-946.44,0.00013698,2]
[420698518,1776459038797,-946.44,0.00013698,2]
[420698519,1776459038807,-946.44,0.00013698,2]
[420698520,1776459038818,-946.44,0.00013698,2]
[420698521,1776459038827,-946.44,0.00013698,2]
[420698522,1776459038837,-946.44,0.00013698,2]
[420698523,1776459038847,-946.44,0.00013698,2]
[420698524,1776459038856,-946.44,0.00013698,2]
[420698525,1776459038866,-946.44,0.00013698,2]
[420698526,1776459038875,-946.44,0.00013698,2]
[420698528,1776459038884,-946.44,0.00013698,2]
[420698530,1776459038893,-946.44,0.00013698,2]
[420698531,1776459038903,-946.44,0.00013698,2]
[420698533,1776459038912,-946.44,0.00013698,2]
[420698535,1776459038922,-946.44,0.00013698,2]
[420698537,1776459038930,-946.44,0.00013698,2]
[420698539,1776459038939,-946.44,0.00013698,2]
[420698541,1776459038949,-946.6350266,0.00013698,2]
[420698543,1776459038958,-500.0,0.00013698,2]
[420698545,1776459038967,-500.0,0.00013698,2]
[420698547,1776459038976,-500.0,0.00013698,2]
[420698548,1776459038986,-500.0,0.00013698,2]
[420698550,1776459038995,-500.0,0.00013698,2]
[420698552,1776459039006,-500.0,0.00013698,2]
[420698554,1776459039016,-500.0,0.00013698,2]
[420698556,1776459039025,-500.0,0.00013698,2]
[420698558,1776459039034,-500.0,0.00013698,2]
[420698560,1776459039043,-187.51950438,0.00013698,2]
[420698562,1776459039053,-500.0,0.00013698,2]
[420698564,1776459039062,-500.0,0.00013698,2]
[420698566,1776459039071,-187.63,0.00013698,2]
[420698567,1776459039081,-500.0,0.00013698,2]
[420698568,1776459039090,-500.0,0.00013698,2]
[420698569,1776459039100,-500.0,0.00013698,2]
[420698570,1776459039109,-500.0,0.00013698,2]
[420698571,1776459039119,-500.0,0.00013698,2]
[420698572,1776459039129,-500.0,0.00013698,2]
[420698573,1776459039138,-500.0,0.00013698,2]
[420698574,1776459039148,-500.0,0.00013698,2]
[420698575,1776459039158,-500.0,0.00013698,2]
[420698576,1776459039167,-500.0,0.00013698,2]
[420698577,1776459039178,-500.0,0.00013698,2]
[420698578,1776459039189,-500.0,0.00013698,2]
[420698579,1776459039198,-500.0,0.00013698,2]
[420698580,1776459039208,-500.0,0.00013698,2]
[420698581,1776459039219,-500.0,0.00013698,2]
[420698582,1776459039229,-500.0,0.00013698,2]
[420698583,1776459039240,-447.08625352,0.00013698,2]
[420698584,1776459039249,-500.0,0.00013698,2]
[420698585,1776459039259,-936.76763065,0.00013698,2]
[420698586,1776459039271,-223.65236935,0.00013698,2]
[420698587,1776459039281,-500.0,0.00013698,2]
[420698588,1776459039292,-200.0,0.00013699,2]
[420698589,1776459039302,-500.0,0.00013699,2]
[420698590,1776459039312,-174.46555043,0.00013699,2]
[420698591,1776459039323,-500.0,0.000137,2]
[420698592,1776459039332,-202.97,0.00013955,2]
[420698593,1776459039342,-187.63,0.00013972,2]
[420698594,1776459039352,-41257.15283243,0.0001399,2]
[420698595,1776459039364,-993.3784,0.0001399,2]
[420698596,1776459039377,-1760.5068671,0.0001399,2]
[420698602,1776459040663,-15988.96190047,0.0001399,2]
[420698603,1776459040674,-187.65,0.00014246,2]
[420698604,1776459040684,-2000.0,0.00014776,2]
[420698605,1776459040693,-150.0,0.00014963,2]
[420698606,1776459040702,-300.0,0.00015,2]
[420698607,1776459040711,-900.0,0.00015068,2]
[420698608,1776459040720,-151.72,0.0001588,3]
[420698609,1776459040729,-500.0,0.0001589,2]
[420698610,1776459040738,-500.0,0.0001589,2]
[420698611,1776459040747,-500.0,0.0001589,2]
[420698612,1776459040756,-500.0,0.0001589,2]
[420698613,1776459040764,-500.0,0.0001589,2]
[420698614,1776459040774,-500.0,0.0001589,2]
[420698615,1776459040783,-500.0,0.0001589,2]
[420698616,1776459040792,-500.0,0.0001589,2]
[420698617,1776459040801,-500.0,0.0001589,2]
[420698618,1776459040810,-500.0,0.0001589,2]
[420698619,1776459040819,-500.0,0.0001589,2]
[420698620,1776459040828,-500.0,0.0001589,2]
[420698621,1776459040838,-500.0,0.0001589,2]
[420698622,1776459040847,-500.0,0.0001589,2]
[420698623,1776459040856,-500.0,0.0001589,2]
[420698624,1776459040865,-500.0,0.0001589,2]
[420698625,1776459040874,-500.0,0.0001589,2]
[420698626,1776459040883,-500.0,0.0001589,2]
[420698627,1776459040892,-500.0,0.0001589,2]
[420698628,1776459040901,-500.0,0.0001589,2]
[420698629,1776459040910,-500.0,0.0001589,2]
[420698630,1776459040920,-500.0,0.0001589,2]
[420698631,1776459040929,-500.0,0.0001589,2]
[420698632,1776459040938,-500.0,0.0001589,2]
[420698633,1776459040947,-500.0,0.0001589,2]
[420698634,1776459040957,-500.0,0.0001589,2]
[420698635,1776459040966,-500.0,0.0001589,2]
[420698636,1776459040975,-500.0,0.0001589,2]
[420698637,1776459040984,-500.0,0.0001589,2]
[420698638,1776459040993,-500.0,0.0001589,2]
[420698639,1776459041002,-500.0,0.0001589,2]
[420698640,1776459041011,-500.0,0.0001589,2]
[420698641,1776459041020,-500.0,0.0001589,2]
[420698642,1776459041030,-500.0,0.0001589,2]
[420698643,1776459041039,-500.0,0.0001589,2]
[420698644,1776459041048,-500.0,0.0001589,2]
[420698645,1776459041056,-500.0,0.0001589,2]
[420698646,1776459041066,-500.0,0.0001589,2]
[420698647,1776459041075,-500.0,0.0001589,2]
[420698648,1776459041085,-500.0,0.0001589,2]
[420698649,1776459041094,-500.0,0.0001589,2]
[420698650,1776459041103,-500.0,0.0001589,2]
[420698651,1776459041112,-500.0,0.0001589,2]
[420698652,1776459041121,-500.0,0.0001589,2]
[420698653,1776459041130,-500.0,0.0001589,2]
[420698654,1776459041140,-500.0,0.0001589,2]
[420698655,1776459041148,-500.0,0.0001589,2]
[420698656,1776459041158,-500.0,0.0001589,2]
[420698657,1776459041167,-500.0,0.0001589,2]
[420698658,1776459041177,-500.0,0.0001589,2]
[420698659,1776459041186,-500.0,0.0001589,2]
[420698660,1776459041195,-500.0,0.0001589,2]
[420698661,1776459041204,-500.0,0.0001589,2]
[420698662,1776459041216,-500.0,0.0001589,2]
[420698663,1776459041225,-500.0,0.0001589,2]
[420698664,1776459041235,-500.0,0.0001589,2]
[420698665,1776459041245,-500.0,0.0001589,2]
[420698666,1776459041255,-500.0,0.0001589,2]
[420698667,1776459041264,-500.0,0.0001589,2]
[420698668,1776459041274,-500.0,0.0001589,2]
[420698669,1776459041283,-500.0,0.0001589,2]
[420698670,1776459041293,-500.0,0.0001589,2]
[420698671,1776459041302,-500.0,0.0001589,2]
[420698672,1776459041311,-500.0,0.0001589,2]
[420698673,1776459041320,-602.75199269,0.0001589,2]
[420698674,1776459041331,-2000.0,0.0001589,2]
[420698675,1776459041341,-9999.99,0.00016116,2]
[420698676,1776459041350,-250.0,0.0001616,2]
[420698677,1776459041360,-1885.0,0.00016186,2]
[420698678,1776459041370,-150.0,0.00016226,2]
[420698679,1776459041379,-2000.0,0.00016417,2]
[420698680,1776459041389,-500.0,0.00016437,2]
[420698681,1776459041398,-1160.42,0.00016437,2]
[420698682,1776459041409,-900.0,0.00016438,2]
[420698683,1776459041420,-234.12,0.00016712,2]
[420698684,1776459041430,-350.0,0.00017,2]
[420698685,1776459041440,-303.44,0.0001725,3]
[420698686,1776459041450,-2000.0,0.00018059,2]
[420698687,1776459041460,-280.0,0.00018466,2]
[420698688,1776459041471,-326.0,0.00018624,2]
[420698689,1776459041480,-417.0,0.00018778,2]
[420698690,1776459041490,-400.0,0.00019,2]
[420698691,1776459041499,-5000.0,0.00019352,2]
[420698692,1776459041508,-186.29,0.00019452,13]
[420698693,1776459041517,-186.29,0.00019452,13]
[420698694,1776459041527,-186.28,0.00019452,13]
[420698695,1776459041537,-234.12,0.00019658,2]
[420698696,1776459041546,-2000.0,0.00019701,2]
[420698697,1776459041556,-572.0,0.0002,2]
[420698698,1776459041565,-1126.0,0.0002,2]
[420698699,1776459041575,-1170.0,0.0002,2]
[420698700,1776459041585,-186.29,0.0002,13]
[420698701,1776459041594,-186.29,0.0002,13]
[420698702,1776459041603,-273.0,0.0002,2]
[420698703,1776459041612,-186.28,0.0002,13]
[420698704,1776459041622,-211.0,0.0002,2]
[420698705,1776459041631,-1011.0,0.0002,2]
[420698706,1776459041641,-2802.0,0.0002,2]
[420698707,1776459041650,-200.0,0.0002,10]
[420698708,1776459041661,-152.3219531,0.0002,20]
[420698709,1776459041672,-446.0,0.0002009,7]
[420698710,1776459041682,-2888.0,0.0002009,7]
[420698711,1776459041691,-7991.0,0.0002009,7]
[420698712,1776459041701,-300.0,0.000201,10]
[420698713,1776459041712,-170.62,0.00020113,2]
[420698714,1776459041722,-186.29,0.00020548,13]
[420698715,1776459041732,-186.29,0.00020548,13]
[420698716,1776459041744,-186.28,0.00020548,13]
[420698717,1776459041754,-450.0,0.00021,2]
[420698718,1776459041763,-572.0,0.00021,2]
[420698719,1776459041772,-1126.0,0.00021,2]
[420698720,1776459041782,-1170.0,0.00021,2]
[420698721,1776459041791,-273.0,0.00021,2]
[420698722,1776459041801,-211.0,0.00021,2]
[420698723,1776459041816,-1011.0,0.00021,2]
[420698724,1776459041827,-2802.0,0.00021,2]
[420698725,1776459041839,-5000.0,0.00021918,2]
[420698726,1776459041850,-186.29,0.00021918,13]
[420698727,1776459041861,-186.29,0.00021918,13]
[420698728,1776459041871,-186.28,0.00021918,13]
[420698729,1776459041880,-572.0,0.00022,2]
[420698730,1776459041890,-1126.0,0.00022,2]
[420698731,1776459041899,-1170.0,0.00022,2]
[420698732,1776459041908,-273.0,0.00022,2]
[420698733,1776459041918,-211.0,0.00022,2]
[420698734,1776459041927,-1011.0,0.00022,2]
[420698735,1776459041937,-234.12,0.00022603,2]
[420698736,1776459041946,-1000.0,0.00022659,7]
[420698737,1776459041955,-500.0,0.00023,2]
[420698738,1776459041964,-572.0,0.00023,2]
[420698739,1776459041973,-1126.0,0.00023,2]
[420698740,1776459041982,-1170.0,0.00023,2]
[420698741,1776459041991,-273.0,0.00023,2]
[420698742,1776459042000,-211.0,0.00023,2]
[420698743,1776459042010,-1011.0,0.00023,2]
[420698744,1776459042019,-572.0,0.00024,2]
[420698745,1776459042028,-1126.0,0.00024,2]
[420698746,1776459042037,-1170.0,0.00024,2]
[420698747,1776459042047,-273.0,0.00024,2]
[420698748,1776459042055,-211.0,0.00024,2]
[420698749,1776459042064,-1011.0,0.00024,2]
[420698750,1776459042073,-1308.0,0.0002463,2]
[420698751,1776459042083,-1007.15638742,0.0002463,2]
[420698752,1776459042091,-1036.92,0.00024658,2]
[420698753,1776459042101,-500.0,0.00024932,2]
[420698754,1776459042110,-550.0,0.00025,2]
[420698755,1776459042119,-584.0,0.00025,2]
[420698756,1776459042128,-1132.0,0.00025,2]
[420698757,1776459042137,-1171.0,0.00025,2]
[420698758,1776459042147,-280.0,0.00025,2]
[420698759,1776459042156,-216.0,0.00025,2]
[420698760,1776459042166,-1014.0,0.00025,2]
[420698761,1776459042176,-234.12,0.00025548,2]
[420698762,1776459042185,-200.0,0.00026384,2]
[420698763,1776459042195,-500.0,0.00026989,2]
[420698764,1776459042204,-1160.42,0.00026989,2]
[420698765,1776459042215,-600.0,0.00027,2]
[420698766,1776459042224,-931.10638742,0.0002737,30]
[420698767,1776459042234,-1036.92,0.00027397,2]
[420698768,1776459042244,-300.0,0.00027397,2]
[420698769,1776459042253,-1013.6,0.00027397,2]
[420698770,1776459042263,-150.0,0.00027397,5]
[420698771,1776459042273,-968.0,0.00027766,5]
[420698772,1776459042283,-250.0,0.00027945,5]
[420698773,1776459042293,-234.12,0.00028493,2]
[420698774,1776459042303,-350.0,0.00028493,5]
[420698775,1776459042313,-3484.32,0.00028767,2]
[420698776,1776459042322,-3484.32,0.00028767,2]
[420698777,1776459042624,-3484.32,0.00028767,2]
[420698778,1776459042635,-3484.32,0.00028767,2]
[420698779,1776459042644,-3679.2,0.00028767,2]
[420698780,1776459042653,-2000.0,0.000288,2]
[420698781,1776459042663,-650.0,0.00029,2]
[420698782,1776459042672,-450.0,0.00029041,5]
[420698783,1776459042681,-550.0,0.00029589,5]
[420698784,1776459042690,-150.0,0.00030082,7]
[420698785,1776459042699,-150.0,0.00030082,7]
[420698786,1776459042708,-150.0,0.00030082,7]
[420698787,1776459042717,-150.0,0.00030082,7]
[420698788,1776459042727,-150.0,0.00030082,7]
[420698789,1776459042736,-150.0,0.00030082,7]
[420698790,1776459042746,-150.0,0.00030082,7]
[420698791,1776459042755,-150.0,0.00030082,7]
[420698792,1776459042765,-150.0,0.00030082,7]
[420698793,1776459042775,-1219.0,0.00030137,5]
[420698794,1776459042786,-1036.92,0.00030137,2]
[420698795,1776459042797,-348.9841809,0.00030137,5]
[420698796,1776459042807,-150.0,0.00030416,7]
[420698797,1776459042816,-150.0,0.000305,7]
[420698798,1776459042826,-150.0,0.000305,7]
[420698799,1776459042835,-150.0,0.0003056,7]
[420698800,1776459042846,-150.0,0.00030639,7]
[420698801,1776459042855,-150.0,0.00030751,7]
[420698802,1776459042864,-150.0,0.00030918,7]
[420698803,1776459042873,-150.0,0.00030918,7]
[420698804,1776459042883,-700.0,0.00031,2]
[420698805,1776459042892,-150.0,0.00031037,7]
[420698806,1776459042903,-150.0,0.00031085,7]
[420698807,1776459042914,-150.0,0.00031196,7]
[420698808,1776459042925,-150.0,0.00031336,7]
[420698809,1776459042936,-150.0,0.00031336,7]
[420698810,1776459042964,-150.0,0.00031419,7]
[420698811,1776459042975,-150.0,0.00031515,7]
[420698812,1776459042985,-150.0,0.00031753,7]
[420698813,1776459042994,-150.0,0.00031753,7]
[420698814,1776459043003,-150.0,0.00031753,7]
[420698815,1776459043013,-150.0,0.00031753,7]
[420698816,1776459043022,-150.0,0.00031753,7]
[420698817,1776459043033,-150.0,0.00031753,7]
[420698818,1776459043043,-150.0,0.00031992,7]
[420698819,1776459043052,-150.0,0.00032088,7]
[420698820,1776459043061,-150.0,0.00032171,7]
[420698821,1776459043071,-150.0,0.00032171,7]
[420698822,1776459043080,-150.0,0.00032311,7]
[420698823,1776459043089,-150.0,0.00032422,7]
[420698824,1776459043098,-150.0,0.0003247,7]
[420698825,1776459043107,-2000.0,0.000325,2]
[420698826,1776459043117,-150.0,0.00032589,7]
[420698827,1776459043126,-150.0,0.00032589,7]
[420698828,1776459043135,-150.0,0.00032756,7]